Cogmind - Beta 12 X6 @@@ ROGUE MODE // 2023.01.22 @ 14:44:34 Player: Decinym Result: Destroyed by as-67672 with Assembled Blade Performance ------------- Evolutions (0) 0 Regions Visited (2) 400 Robots Destroyed (18) 90 Value Destroyed (324) 324 Prototype IDs (0) 0 Alien Tech Used (0) 0 Bonus (7) 7 TOTAL SCORE: 821 Bonus ------- Follower Combat Kills 7 Cogmind --------- Core Integrity 0/250 Matter 298/300 Energy 125/125 System Corruption 0% Temperature Cool (0) Movement Core (200) Ox3 Location -10/Mines Parts ------- > --- POWER (1) -------- Light Ion Engine > --- PROPULSION (2) --- Light Treads > --- UTILITY (2) ------ Small Storage Unit Targeting Computer > --- WEAPON (2) ------- Light Assault Rifle Light Assault Rifle > --- INVENTORY (8) ---- Ion Engine Light Ion Engine Light Treads Light Armor Plating Bomb Drone Bay Assault Rifle Slug Cannon Peak State ------------ > --- POWER ------------ Light Ion Engine > --- PROPULSION ------- Light Treads Compact Wheel > --- UTILITY ---------- Small Storage Unit Targeting Computer > --- WEAPON ----------- Light Assault Rifle Light Assault Rifle > --- INVENTORY -------- Ion Engine Light Ion Engine Light Treads Light Armor Plating Bomb Drone Bay Assault Rifle Slug Cannon [Rating: 9] Favorites ----------- Power Ion Engine Engine Ion Engine Propulsion Aluminum Leg Treads Light Treads Leg Aluminum Leg Wheel Compact Wheel Utility Small Storage Unit Device Heat Sink Storage Small Storage Unit Processor Targeting Computer Weapon Light Assault Rifle Ballistic Gun Light Assault Rifle Build | -11 -10 -10 ------- Run | Jun Mat Min Slots Evolved . | . . . Power . | . . . Propulsion . | . . . Utility . | . . . Weapon . | . . . Parts Attached 9 | . 2 7 Power 1 | . . 1 Engine 1 | . . 1 Core . | . . . Reactor . | . . . Propulsion 2 | . . 2 Treads 1 | . . 1 Leg . | . . . Wheel 1 | . . 1 Hover . | . . . Flight . | . . . Utility 2 | . 1 1 Device 1 | . 1 . Storage . | . . . Processor 1 | . . 1 Hackware . | . . . Protection . | . . . Artifact . | . . . Weapon 4 | . 1 3 Energy Gun . | . . . Energy Cannon . | . . . Ballistic Gun 4 | . 1 3 Ballistic Cannon . | . . . Launcher . | . . . Special Weapon . | . . . Impact Weapon . | . . . Slashing Weapon . | . . . Piercing Weapon . | . . . Special Melee Weapon . | . . . Unidentified Prototypes . | . . . Parts Lost 3 | . . 3 Power . | . . . Propulsion 3 | . . 3 Utility . | . . . Weapon . | . . . Highest Loss Streak 1 | . . 1 To Critical Strikes . | . . . Average Slot Usage (%) 97 | . 98 96 Engine 14 | . 14 14 Treads 1 | . . 1 Leg 21 | . 28 19 Wheel 3 | . . 4 Device 3 | . 12 1 Storage 14 | . 14 14 Processor 9 | . . 12 Ballistic Gun 28 | . 28 28 Naked Turns . | . . . Heaviest Build 15 | 14 15 14 Greatest Support 20 | 20 20 20 Greatest Overweight (x) . | . . . Average Overweight (x) . | . . . Largest Inventory Capacity 8 | . 8 8 Average Capacity 8 | . 8 8 Most Carried 8 | . 8 8 Average Carried 7 | . 7 7 Final Capacity 8 | 8 8 8 Final Carried 8 | 6 8 8 Class Distribution -------------------- 100% | Mutant Dominant Class ---------------- Mutant | -10/Materials Mutant | -10/Mines Resources | -11 -10 -10 ----------- Run | Jun Mat Min Matter Collected 443 | 200 32 211 Remotely . | . . . Salvage Created 340 | . 130 210 Parts 29 | . 7 22 Haulers Intercepted . | . . . Recyclers Shooed 1 | . 1 . Parts Field Recycled . | . . . Retrieved Matter . | . . . Parts Self-Destructed . | . . . Prevented . | . . . Kills | -11 -10 -10 ------- Run | Jun Mat Min Combat Hostiles Destroyed 18 | . 5 13 Guns 18 | . 5 13 Classes Destroyed 5 | . 2 3 Tunneler 1 | . . 1 Swarmer 13 | . 3 10 Grunt 2 | . 2 . Demolisher 2 | . . 2 Assembled 1 | . . 1 Best Kill Streak 10 | . 3 10 Combat Bots Only 6 | . 3 6 Max Kills in Single Turn 2 | . 1 2 Gunslinging 1 | . . 1 Exploded . | . . . Melee . | . . . Uniques/NPCs Destroyed . | . . . Combat | -11 -10 -10 -------- Run | Jun Mat Min Damage Taken 843 | . 225 618 Core 274 | . 52 222 Absorbed by Shields . | . . . Core Remaining (%) 100 | 100 . . Volleys Fired 54 | . 22 32 Largest 2 | . 2 2 Hottest 40 | . 40 40 Shots Fired 108 | . 44 64 Gun 108 | . 44 64 Cannon . | . . . Launcher . | . . . Special . | . . . Kinetic 108 | . 44 64 Thermal . | . . . Explosive . | . . . Electromagnetic . | . . . Robot Hit Streak 7 | . 6 7 Robot Miss Streak 4 | . 3 4 Penetration Max . | . . . Secondary Targets 3 | . . 3 Max Gunslinging Chain 1 | . . 1 Shots Hit Robots 52 | . 22 30 Core Hits 33 | . 9 24 Critical Kills . | . . . Critical Parts Destroyed . | . . . Critical Strikes . | . . . Melee Attacks . | . . . Impact . | . . . Slashing . | . . . Piercing . | . . . Sneak Attacks . | . . . Combat Hostiles . | . . . Follow-up Attacks . | . . . Damage Inflicted 564 | . 254 310 Guns 544 | . 254 290 Cannons . | . . . Explosions . | . . . Melee . | . . . Ramming 20 | . . 20 Kinetic 544 | . 254 290 Thermal . | . . . Explosive . | . . . Electromagnetic . | . . . Impact . | . . . Slashing . | . . . Piercing . | . . . Highest Corruption . | . . . Average Corruption . | . . . Corruption Purged . | . . . Corruption Blocked . | . . . Overload Shots . | . . . Overflow Damage . | . . . Projectiles . | . . . Explosions . | . . . Melee . | . . . Knockbacks . | . . . Impact . | . . . Kinetic . | . . . Secondary . | . . . Self-Inflicted Damage . | . . . Shots . | . . . Rammed . | . . . Targets Rammed 3 | . . 3 Kicked 3 | . . 3 Crushed . | . . . Highest Temperature . | . . . Average Temperature . | . . . Received Heat Transfer 75 | . 75 . Siege Activations . | . . . Robots Corrupted . | . . . Combat Hostiles . | . . . Parts Fried . | . . . Impact Corruptions . | . . . Robots Melted . | . . . Combat Hostiles . | . . . Parts Melted . | . . . Heat Transferred . | . . . Parts Sabotaged . | . . . Parts Stolen . | . . . Parts Stripped . | . . . Power Chain Reactions . | . . . Missiles Intercepted . | . . . Alert | -11 -10 -10 ------- Run | Jun Mat Min Peak Influence 377 | . 150 377 Initial 58 | . . 58 Average 199 | . 44 240 Maximum Alert Level 1 | . . 1 Low Security (%) 34 | . 100 17 Level 1 65 | . . 82 Level 2 . | . . . Level 3 . | . . . Level 4 . | . . . Level 5 . | . . . High Security . | . . . Max Security . | . . . Squads Dispatched 3 | . 3 . Investigation 1 | . 1 . Extermination . | . . . Reinforcement 2 | . 2 . Assault . | . . . Garrison . | . . . Intercept . | . . . Searches Triggered . | . . . Construction Impeded . | . . . Haulers Reinforced . | . . . Active Scanning Responses . | . . . Cargo Convoy Interrupts . | . . . Stealth | -11 -10 -10 --------- Run | Jun Mat Min Distress Signals . | . . . Communications Jammed . | . . . Distress Signals . | . . . Times Spotted 33 | . 8 25 Peak Tracking Total 9 | . 3 9 Tactical Retreats 2 | . . 2 Traps | -11 -10 -10 ------- Run | Jun Mat Min Traps Triggered 1 | . 1 . Indirectly . | . . . Trap Hack Attempts . | . . . Triggered . | . . . Disarmed . | . . . Reprogrammed . | . . . Reused . | . . . Traps Extracted . | . . . Installed . | . . . Triggered . | . . . Machines | -11 -10 -10 ---------- Run | Jun Mat Min Machines Disabled . | . . . Max in Single Turn . | . . . Machines Repaired . | . . . Machines Sabotaged . | . . . Overloaded Fab Kills . | . . . Hacking | -11 -10 -10 --------- Run | Jun Mat Min Machines Accessed 4 | . 2 2 Terminals 3 | . 2 1 Fabricators . | . . . Repair Stations . | . . . Recycling Units . | . . . Scanalyzers . | . . . Garrison Access . | . . . Total Hacks 10 | . 4 6 Successful 4 | . . 4 Failed 6 | . 4 2 Catastrophic 3 | . 3 . Database Lockouts . | . . . Manual 5 | . 4 1 Terminals 9 | . 4 5 Fabricators . | . . . Repair Stations . | . . . Recycling Units . | . . . Scanalyzers . | . . . Garrison Access . | . . . Terminal Hacks 3 | . . 3 Record 1 | . . 1 Open Door 1 | . . 1 Zone Layout 1 | . . 1 Fabricator Hacks . | . . . Repair Station Hacks . | . . . Recycling Unit Hacks . | . . . Scanalyzer . | . . . Garrison Access Hacks . | . . . Unauthorized Hacks 1 | . . 1 Terminals 1 | . . 1 Botnet 1 | . . 1 Fabricators . | . . . Repair Stations . | . . . Recycling Units . | . . . Scanalyzers . | . . . Garrison Access . | . . . Data Cores Recovered . | . . . Used . | . . . Hacking Detections 3 | . 2 1 Full Trace Events . | . . . Feedback Events . | . . . Feedback Blocked . | . . . Robot Schematics Acquired . | . . . Robots Built . | . . . Authchips . | . . . Time . | . . . Total Robot Build Rating . | . . . Part Schematics Acquired . | . . . Parts Built . | . . . Authchips . | . . . Time . | . . . Total Part Build Rating . | . . . Parts Repaired . | . . . Time . | . . . Parts Recycled . | . . . Recycled Matter . | . . . Retrieved Matter . | . . . Retrieved Components . | . . . Parts Scanalyzed . | . . . Part Schematics Acquired . | . . . Parts Damaged . | . . . Bothacking | -11 -10 -10 ------------ Run | Jun Mat Min Used RIF Installer . | . . . Robots Hacked . | . . . Non-combat . | . . . Combat . | . . . Robot Hacks Applied . | . . . Relay Couplers Released . | . . . Fabnet Peak Effective % . | . . . Robots Rewired . | . . . Allies Hacked . | . . . Hacks Repelled . | . . . Allies | -11 -10 -10 -------- Run | Jun Mat Min Total Allies 2 | . . 2 Largest Group 1 | . . 1 Highest-Rated Group 31 | . . 31 Highest-Rated Ally 31 | . . 31 Total Orders . | . . . Ally Attacks 17 | . . 17 Total Damage 235 | . . 235 Kills 5 | . . 5 Allies Corrupted . | . . . Allies Melted . | . . . Intel | -11 -10 -10 ------- Run | Jun Mat Min Robot Analysis Total . | . . . Derelict Logs Recovered 2 | . . 2 Drone Launches . | . . . Drone Recoveries . | . . . Exploration | -11 -10 -10 ------------- Run | Jun Mat Min Turns Passed 799 | . 169 630 Spaces Moved 511 | 1 84 426 Core . | . . . Treads . | . . . Legs 374 | 1 84 289 Wheels 137 | . . 137 Hover . | . . . Flight . | . . . Fastest Speed 100 | 120 120 100 Average Speed 114 | 120 120 113 Slowest Speed 120 | 120 120 120 Overloaded Moves . | . . . Propulsion Burnouts . | . . . Robots Hopped . | . . . Cave-ins Triggered . | . . . Exploration Rate (%) 36 | 2 29 78 Regions Visited 2 Branch Regions 1 Pre-discovered Areas 1 | . . 1 Known Exits Taken . | . . . Unknown Exits Taken 2 | 1 1 . Scrap Searched 1 | . . 1 Spaces Dug . | . . . Terrain Destroyed . | . . . Melee . | . . . Projectile . | . . . AOE . | . . . Terrain Rammed . | . . . Walls Destroyed . | . . . Machines Disabled . | . . . Actions | -11 -10 -10 --------- Run | Jun Mat Min Total 633 | . 111 522 Wait 46 | . 2 44 Move 509 | . 83 426 Hop . | . . . Pick Up 5 | . 2 3 Fast Attach 4 | . 1 3 Attach 2 | . . 2 Detach . | . . . Swap 3 | . 1 2 Drop 7 | . . 7 Fire 54 | . 22 32 Melee . | . . . Ram . | . . . Kick 3 | . . 3 Crush . | . . . Escape Stasis . | . . . Rewire . | . . . Trap . | . . . Miscellaneous . | . . . Route ------- -11/Junkyard -10/Materials -10/Mines (discovered 2 exits: [*Mat x2]) History --------- Turn | Location | Event 1 | -11/Junkyard | Discovered new exit (range 0) 1 | -11/Junkyard | Entered Materials 128 | -10/Materials | Discovered new exit (range 7) 170 | -10/Materials | Entered Mines 244 | -10/Mines | Discovered new exit (range 9) 285 | -10/Mines | Discovered new exit (range 12) 312 | -10/Mines | Build established: Mutant 428 | -10/Mines | Escorted by a lone wolf Derelict 448 | -10/Mines | Learned location of Storage (-9) 533 | -10/Mines | Assembled infested the area 533 | -10/Mines | Learned 4 Materials zone layouts 580 | -10/Mines | A weapon hastily lodged in a ceiling crevice suddenly fell to the ground 598 | -10/Mines | Core integrity fell below 50% 615 | -10/Mines | Received a Mining Laser from a helpful Derelict 728 | -10/Mines | Found the Drone Emporium 732 | -10/Mines | Found Prototype Device 796 | -10/Mines | Core integrity fell below 20% 800 | -10/Mines | Destroyed by as-67672 with Assembled Blade Last Messages --------------- 00677_ Acquired 9 matter. 00715_ Acquired derelict log, extracted data. Data stored: Storage entrances (x1). 00727_ Connecting with SHOP.Sys... >>Open Door Sealed Doors opened. 00728_ C3-SMR(g): "Well that was anticlimactic. Heard you outside and thought you were from the Merchants Guild. I haven't even officially opened my Drone Emporium yet but am totally ready to tell them where they can shove that C&D." 00730_ C3-SMR(g): "I'm a fan of the free market. Free drones for all! No strings attached!" 00731_ Dropped Mining Laser. 00732_ Acquired Prototype Device. 00757_ SG-2HC(g) destroyed. 00762_ K-01 Serf collects debris. 00768_ as-23680 destroyed. 00769_ K-01 Serf collects debris. 00779_ Acquired 18 matter. 00798_ Com. Wheel destroyed. Map ----- +----------------------------------------------------+ | ###### ######## ###???????????????# #??# # | | ?????# #??????## ##?????????????????# #?## | | ????## #???????####??????????????????# ### | | ????# ?????????????????????????????# ## # | | ????# #????????????????????????????# =! #? | | ????## ##????????????????????????????#!### ##? | | ##???## #?????????????????????????????# #?## ##?? | | ##???# #????????????????????????????## ##?# #??? | | #???# ####?????????????????????????# ### #??? | | ##?## ##????????????????????????# ## #??? | | ### ##???????????????????????# ## #### | | ## #????????###???????????## ###* [ | | ### #???????## ##??????????# < ##?# #### | | ## #??????## #?????????# #####*=%##? | | # ## #????### #?????????###### [ = ## | | ## #???## #??????????????# [= [ | | % ## ##### ##????????????## ### | | ## ##=* ##???????????# ###?? | | ### %=%! ##??????????# ##???? | | ##?# != ##?????????# ##???? | | ##??# #?????????## = [#???? | | ##### #??????????## [%#???? | | #???????????## %*#???? | | ### ##????????????##[ #???? | | ### """ ##?# ##??????????????# #???? | | #?# """ ## #####??# @#######?????????# #???? | | ##?# """ ### #??###?# a #?????????# #???? | | ##??# #?# ?? #?# ##### #?????????# #???? | | ????# #?####?# ### ##??# #?????##### #???? | | ????## #?????## ## ##?#% ##??## ## #???? | | ?????## ##?????# ## = ## #### % #???? | | ??????# ##???#### # %% % #???? | | ??????# ##???# # = # = ##### #???? | | ??????# #??## ## %##???## ##???? | | ??????## ##??# ## ## % ?????## ##????? | | ???????# ##???# ## ###### #????####?????? | | ???????# #????# # # #?###??????#?????????????? | | ???##### #????# ###???????????????????????? | | ???# ###### #???????????????????????? | | ???# ###### #??????????????????????? | | #### ###### ### #?????????????????????? | | # #?## #??????????????????????? | | #%###########??# % #??????????????????????? | | % ####????????# #??????????????????????? | | #????????# #??????????????????????? | | ##??????? ## #?????????????????????? | | #??????? ###?? =?????????????????????? | | #??????####????# ## ?????????????????????? | | #??????????????###???????????????????????? | | # #????????????????????????????????????????? | +----------------------------------------------------+ Best States ------------- Heat Dissipation 35 Energy Generation 10 Energy Capacity 250 Matter Stores 300 Matter Capacity 300 Sight Range 16 Terrain Scan Density 10 Evasion (%) 55 Targeting Accuracy 5 Item Schematics ----------------- None Robot Schematics ------------------ None Fabricated ------------ Nothing Alien Tech Used ----------------- None Achievements -------------- None Challenges ------------ None Game ------ Seed VariableCoolantNukerbomber Manual? 0 Play Time 00:11:35 Cumulative 440.8 hours Start 2023.01.22 @ 14:37:59 End 2023.01.22 @ 14:44:34 Sessions 1 Manual Loads 0 Difficulty Rogue Special Mode None Game No. 440 Rogue 440 Adventurer 0 Explorer 0 Win Type - Total 32 Types 18/3/4/1/2/1/3/0/0 Lore% 92 Gallery% 93 Achievement% 82 Wizard Run 0 Options --------- ASCII 0 Keyboard 0 Movement Mouse Keybinds 0 Fullscreen 2 Font 24/Smallcaps Map View 76x50 Tactical HUD 1 Map Filters NONE Filters NONE Steam 1 RUN: 11d8fa03-2267-4269-89b5-e3aad341101f